[Event "*** Titled Tuesday Blitz"]
[Site "Chess.com"]
[Date "2020.05.26"]
[Round "4"]
[White "wannabe2700"]
[Black "Sweafty"]
[Result "1-0"]
[WhiteElo "2728"]
[BlackElo "2515"]
[TimeControl "180+1"]
[EndTime "10:38:55 PDT"]
[Termination "wannabe2700 won by resignation"]

1. e4 {[%clk 0:03:00.9]} 1... c5 {[%clk 0:02:59.9]} 2. d4 {[%clk 0:03:01]} 2...
cxd4 {[%clk 0:02:59.8]} 3. Nf3 {[%clk 0:03:01.4]} 3... Nc6 {[%clk 0:02:59.7]} 4.
Nxd4 {[%clk 0:03:01.7]} 4... e6 {[%clk 0:02:59.7]} 5. Nc3 {[%clk 0:03:01.8]}
5... a6 {[%clk 0:02:59.8]} 6. Nxc6 {[%clk 0:02:53.8]} 6... bxc6 {[%clk
0:02:59.5]} 7. Bd3 {[%clk 0:02:52.6]} 7... d5 {[%clk 0:02:59.1]} 8. O-O {[%clk
0:02:51.2]} 8... Nf6 {[%clk 0:02:59]} 9. Qe2 {[%clk 0:02:45.7]} 9... Be7 {[%clk
0:02:45.9]} 10. Bf4 {[%clk 0:02:33.6]} 10... O-O {[%clk 0:02:36.6]} 11. Rad1
{[%clk 0:02:19.3]} 11... Re8 {[%clk 0:02:28.5]} 12. Rfe1 {[%clk 0:02:13.4]}
12... Nd7 {[%clk 0:02:18.5]} 13. Qf3 {[%clk 0:01:40.7]} 13... Bg5 {[%clk
0:02:04]} 14. Bxg5 {[%clk 0:01:26.8]} 14... Qxg5 {[%clk 0:02:03.1]} 15. exd5
{[%clk 0:01:27.2]} 15... cxd5 {[%clk 0:01:59.8]} 16. Nxd5 {[%clk 0:01:15.3]}
16... Bb7 {[%clk 0:01:55.2]} 17. Ne7+ {[%clk 0:00:55.3]} 17... Qxe7 {[%clk
0:01:54.2]} 18. Qxb7 {[%clk 0:00:56.2]} 18... Nc5 {[%clk 0:01:22.6]} 19. Qxe7
{[%clk 0:00:51.6]} 19... Rxe7 {[%clk 0:01:22.6]} 20. Bf1 {[%clk 0:00:46.8]}
20... Rc7 {[%clk 0:01:21.2]} 21. c4 {[%clk 0:00:44.6]} 21... a5 {[%clk
0:01:13.7]} 22. b3 {[%clk 0:00:41.3]} 22... f6 {[%clk 0:01:07.7]} 23. Rd6 {[%clk
0:00:40.2]} 23... e5 {[%clk 0:01:06.8]} 24. g3 {[%clk 0:00:35.1]} 24... Re7
{[%clk 0:00:59]} 25. Bg2 {[%clk 0:00:34.6]} 25... Rb8 {[%clk 0:00:52.2]} 26.
Bd5+ {[%clk 0:00:31.4]} 26... Kf8 {[%clk 0:00:45.5]} 27. Rc6 {[%clk 0:00:28.4]}
27... Nd7 {[%clk 0:00:38.6]} 28. Ra6 {[%clk 0:00:26.5]} 28... Nb6 {[%clk
0:00:23.8]} 29. Rxa5 {[%clk 0:00:26.2]} 29... Rd8 {[%clk 0:00:22.6]} 30. a4
{[%clk 0:00:23.5]} 30... Nxd5 {[%clk 0:00:20.5]} 31. Rxd5 {[%clk 0:00:18.8]}
31... Rb8 {[%clk 0:00:20.7]} 32. Rb5 {[%clk 0:00:16.7]} 32... Rxb5 {[%clk
0:00:19.5]} 33. cxb5 {[%clk 0:00:16.2]} 33... Ke8 {[%clk 0:00:18.8]} 34. f4
{[%clk 0:00:15]} 34... Kd7 {[%clk 0:00:17.3]} 35. fxe5 {[%clk 0:00:15.2]} 35...
fxe5 {[%clk 0:00:17.4]} 36. Kf2 {[%clk 0:00:15.4]} 36... Kc7 {[%clk 0:00:17.9]}
37. Ke3 {[%clk 0:00:16]} 37... Kb6 {[%clk 0:00:18.7]} 38. b4 {[%clk 0:00:16.2]}
38... e4 {[%clk 0:00:18.5]} 39. Rc1 {[%clk 0:00:16.6]} 39... Re6 {[%clk
0:00:17.9]} 40. Rc4 {[%clk 0:00:16.3]} 40... Re7 {[%clk 0:00:17.8]} 41. Rxe4
{[%clk 0:00:16.7]} 41... Rc7 {[%clk 0:00:18.2]} 42. Re6+ {[%clk 0:00:17.1]}
42... Kb7 {[%clk 0:00:18.7]} 43. Kd4 {[%clk 0:00:17.5]} 43... Rc1 {[%clk
0:00:17.8]} 44. Re7+ {[%clk 0:00:17.2]} 44... Kb8 {[%clk 0:00:18.4]} 45. Rxg7
{[%clk 0:00:16.5]} 45... Rb1 {[%clk 0:00:19]} 46. Kc5 {[%clk 0:00:16.6]} 46...
Rc1+ {[%clk 0:00:19.4]} 47. Kb6 {[%clk 0:00:16.9]} 47... Kc8 {[%clk 0:00:20.2]}
48. Rxh7 {[%clk 0:00:17]} 48... Ra1 {[%clk 0:00:20.1]} 49. a5 {[%clk 0:00:17.5]}
49... Ra2 {[%clk 0:00:20.3]} 50. a6 {[%clk 0:00:18]} 1-0

[Event "*** Titled Tuesday Blitz"]
[Site "Chess.com"]
[Date "2020.05.26"]
[Round "4"]
[White "chessdjw"]
[Black "blitzking1729"]
[Result "1-0"]
[WhiteElo "2707"]
[BlackElo "2505"]
[TimeControl "180+1"]
[EndTime "10:38:55 PDT"]
[Termination "chessdjw won by resignation"]

1. e4 {[%clk 0:03:00.9]} 1... c6 {[%clk 0:02:59.8]} 2. Nf3 {[%clk 0:03:01.1]}
2... d5 {[%clk 0:02:59.5]} 3. Nc3 {[%clk 0:03:01.8]} 3... Bg4 {[%clk 0:02:59.1]}
4. h3 {[%clk 0:03:00.9]} 4... Bxf3 {[%clk 0:02:58.6]} 5. Qxf3 {[%clk 0:03:01.8]}
5... e6 {[%clk 0:02:58.3]} 6. Be2 {[%clk 0:03:01.7]} 6... Nf6 {[%clk 0:02:57.1]}
7. O-O {[%clk 0:03:01.6]} 7... Bc5 {[%clk 0:02:42.7]} 8. Rd1 {[%clk 0:03:01.7]}
8... d4 {[%clk 0:02:40.9]} 9. e5 {[%clk 0:02:56.7]} 9... dxc3 {[%clk 0:02:27.5]}
10. exf6 {[%clk 0:02:55.1]} 10... Qxf6 {[%clk 0:02:27.1]} 11. Qxf6 {[%clk
0:02:49.2]} 11... gxf6 {[%clk 0:02:27]} 12. bxc3 {[%clk 0:02:47.7]} 12... Nd7
{[%clk 0:02:21.4]} 13. d4 {[%clk 0:02:47.3]} 13... Bd6 {[%clk 0:02:14.1]} 14.
Rb1 {[%clk 0:02:45.8]} 14... O-O-O {[%clk 0:02:11.5]} 15. Be3 {[%clk 0:02:33.9]}
15... f5 {[%clk 0:02:02.8]} 16. a4 {[%clk 0:02:26]} 16... f4 {[%clk 0:02:01.4]}
17. Bc1 {[%clk 0:02:25.2]} 17... Rhg8 {[%clk 0:01:59.4]} 18. Kf1 {[%clk
0:02:24]} 18... Rg5 {[%clk 0:01:49.7]} 19. c4 {[%clk 0:02:18.1]} 19... Rdg8
{[%clk 0:01:44.6]} 20. Bf3 {[%clk 0:02:03.6]} 20... Bc7 {[%clk 0:01:32.6]} 21.
d5 {[%clk 0:01:46.5]} 21... cxd5 {[%clk 0:01:19.3]} 22. cxd5 {[%clk 0:01:45.3]}
22... exd5 {[%clk 0:01:19.7]} 23. Rxd5 {[%clk 0:01:40.2]} 23... Rxd5 {[%clk
0:01:11.2]} 24. Bxd5 {[%clk 0:01:41.1]} 24... Nb6 {[%clk 0:01:05.8]} 25. Bxf7
{[%clk 0:01:37.6]} 25... Rd8 {[%clk 0:01:04.3]} 26. Be6+ {[%clk 0:01:13.7]}
26... Kb8 {[%clk 0:01:03.7]} 27. a5 {[%clk 0:01:12.1]} 27... Na4 {[%clk
0:01:01.7]} 28. Ba3 {[%clk 0:00:34.6]} 28... Nc3 {[%clk 0:00:44.7]} 29. Ra1
{[%clk 0:00:27.4]} 29... Bxa5 {[%clk 0:00:43]} 30. Be7 {[%clk 0:00:26.8]} 30...
Rd2 {[%clk 0:00:40.6]} 31. Bf6 {[%clk 0:00:15.1]} 31... Rxc2 {[%clk 0:00:40.5]}
32. Bf5 {[%clk 0:00:13.2]} 32... Rd2 {[%clk 0:00:35.5]} 33. Bxh7 {[%clk
0:00:13.1]} 33... b6 {[%clk 0:00:24.9]} 34. h4 {[%clk 0:00:13.2]} 34... Nd5
{[%clk 0:00:22.3]} 35. Be5+ {[%clk 0:00:12.3]} 35... Kb7 {[%clk 0:00:22.5]} 36.
h5 {[%clk 0:00:12.8]} 36... Bb4 {[%clk 0:00:17.6]} 37. Be4 {[%clk 0:00:11.6]}
37... Bc5 {[%clk 0:00:16.8]} 38. Ra2 {[%clk 0:00:12.1]} 38... Rd1+ {[%clk
0:00:09.3]} 39. Ke2 {[%clk 0:00:11.9]} 39... Rh1 {[%clk 0:00:05.3]} 40. Bxd5+
{[%clk 0:00:12.2]} 1-0

[Event "*** Titled Tuesday Blitz"]
[Site "Chess.com"]
[Date "2020.05.26"]
[Round "4"]
[White "Roaccutane"]
[Black "GM_dmitrij"]
[Result "0-1"]
[WhiteElo "2724"]
[BlackElo "2938"]
[TimeControl "180+1"]
[EndTime "10:38:56 PDT"]
[Termination "GM_dmitrij won by checkmate"]

1. d4 {[%clk 0:03:00.3]} 1... Nf6 {[%clk 0:03:00.1]} 2. Nc3 {[%clk 0:03:00.2]}
2... d5 {[%clk 0:03:00]} 3. Bg5 {[%clk 0:03:00.1]} 3... c5 {[%clk 0:02:55.6]} 4.
Bxf6 {[%clk 0:02:58.1]} 4... gxf6 {[%clk 0:02:56.5]} 5. e3 {[%clk 0:02:57.1]}
5... Nc6 {[%clk 0:02:52.8]} 6. Nf3 {[%clk 0:02:49.9]} 6... e6 {[%clk 0:02:47.4]}
7. g3 {[%clk 0:02:45.4]} 7... Qb6 {[%clk 0:02:46]} 8. Rb1 {[%clk 0:02:42.3]}
8... cxd4 {[%clk 0:02:44.4]} 9. exd4 {[%clk 0:02:40.5]} 9... Be7 {[%clk
0:02:25.1]} 10. Bd3 {[%clk 0:02:33.5]} 10... Bd7 {[%clk 0:02:21.4]} 11. Be2
{[%clk 0:02:04.8]} 11... f5 {[%clk 0:02:05.7]} 12. O-O {[%clk 0:02:04.3]} 12...
O-O {[%clk 0:01:58.1]} 13. Re1 {[%clk 0:01:57.1]} 13... Bf6 {[%clk 0:01:41.8]}
14. Na4 {[%clk 0:01:57]} 14... Qc7 {[%clk 0:01:42.1]} 15. c3 {[%clk 0:01:54.4]}
15... Kh8 {[%clk 0:01:42.1]} 16. Nc5 {[%clk 0:01:53.1]} 16... Rg8 {[%clk
0:01:36.2]} 17. Bf1 {[%clk 0:01:49.4]} 17... Rg7 {[%clk 0:01:26.3]} 18. Bg2
{[%clk 0:01:46.4]} 18... Rag8 {[%clk 0:01:25.2]} 19. Nd3 {[%clk 0:01:30.7]}
19... Ne7 {[%clk 0:01:10.8]} 20. a4 {[%clk 0:01:16.5]} 20... Nc8 {[%clk
0:01:10.2]} 21. Rc1 {[%clk 0:01:11.7]} 21... Nd6 {[%clk 0:01:09.9]} 22. Nf4
{[%clk 0:01:10.5]} 22... Ne4 {[%clk 0:00:40.4]} 23. Nh5 {[%clk 0:01:09.5]} 23...
Rg6 {[%clk 0:00:40.9]} 24. Nxf6 {[%clk 0:01:09]} 24... Rxf6 {[%clk 0:00:41.8]}
25. Ne5 {[%clk 0:01:08.9]} 25... Be8 {[%clk 0:00:40.2]} 26. c4 {[%clk
0:01:03.9]} 26... dxc4 {[%clk 0:00:30.2]} 27. Rxc4 {[%clk 0:01:01.1]} 27... Qb6
{[%clk 0:00:29.8]} 28. Bxe4 {[%clk 0:00:58.4]} 28... fxe4 {[%clk 0:00:30.7]} 29.
b4 {[%clk 0:00:50]} 29... Qd8 {[%clk 0:00:15.8]} 30. Rxe4 {[%clk 0:00:47.5]}
30... Rf5 {[%clk 0:00:15.9]} 31. b5 {[%clk 0:00:40.5]} 31... Qd5 {[%clk
0:00:13]} 32. Qe2 {[%clk 0:00:39.3]} 32... Qd6 {[%clk 0:00:09.1]} 33. h3 {[%clk
0:00:22.6]} 33... a6 {[%clk 0:00:08.6]} 34. bxa6 {[%clk 0:00:18.2]} 34... Qxa6
{[%clk 0:00:09.5]} 35. Kh2 {[%clk 0:00:19]} 35... Qd6 {[%clk 0:00:05.9]} 36. Rc8
{[%clk 0:00:18.2]} 36... Bxa4 {[%clk 0:00:02.4]} 37. Rxg8+ {[%clk 0:00:19.1]}
37... Kxg8 {[%clk 0:00:03.2]} 38. Rg4+ {[%clk 0:00:19.3]} 38... Kf8 {[%clk
0:00:03.7]} 39. Rh4 {[%clk 0:00:19.2]} 39... Be8 {[%clk 0:00:02]} 40. Re4 {[%clk
0:00:17.8]} 40... Qd5 {[%clk 0:00:02.2]} 41. Rh4 {[%clk 0:00:17.3]} 41... Bc6
{[%clk 0:00:02.4]} 42. Qe3 {[%clk 0:00:17.6]} 42... Qg2# {[%clk 0:00:02.2]} 0-1

[Event "*** Titled Tuesday Blitz"]
[Site "Chess.com"]
[Date "2020.05.26"]
[Round "4"]
[White "Machidon"]
[Black "Volodar_Murzin"]
[Result "0-1"]
[WhiteElo "2507"]
[BlackElo "2716"]
[TimeControl "180+1"]
[EndTime "10:38:56 PDT"]
[Termination "Volodar_Murzin won by resignation"]

1. d4 {[%clk 0:03:00.9]} 1... Nf6 {[%clk 0:02:59.3]} 2. Nf3 {[%clk 0:03:01.5]}
2... g6 {[%clk 0:02:59.2]} 3. Bg5 {[%clk 0:03:02.1]} 3... Bg7 {[%clk 0:02:59.4]}
4. Nbd2 {[%clk 0:03:02.7]} 4... O-O {[%clk 0:02:59.5]} 5. e4 {[%clk 0:03:03.3]}
5... d6 {[%clk 0:03:00.1]} 6. c3 {[%clk 0:03:02.9]} 6... Nbd7 {[%clk 0:02:58.6]}
7. Be2 {[%clk 0:03:01.7]} 7... e5 {[%clk 0:02:58]} 8. O-O {[%clk 0:03:01.4]}
8... h6 {[%clk 0:02:56.6]} 9. Bh4 {[%clk 0:03:01.2]} 9... a6 {[%clk 0:02:52.9]}
10. Re1 {[%clk 0:03:00.7]} 10... b6 {[%clk 0:02:51.1]} 11. a4 {[%clk 0:02:59.4]}
11... Bb7 {[%clk 0:02:50.6]} 12. Bd3 {[%clk 0:02:57.9]} 12... Re8 {[%clk
0:02:48.3]} 13. b4 {[%clk 0:02:50.6]} 13... Qb8 {[%clk 0:02:42.2]} 14. Qb3
{[%clk 0:02:42.9]} 14... a5 {[%clk 0:02:16.2]} 15. d5 {[%clk 0:01:50.5]} 15...
Qc8 {[%clk 0:02:09.5]} 16. Bb5 {[%clk 0:01:45.8]} 16... Rf8 {[%clk 0:02:00.2]}
17. Nc4 {[%clk 0:01:34.9]} 17... Ra7 {[%clk 0:01:08.7]} 18. bxa5 {[%clk
0:01:33.2]} 18... bxa5 {[%clk 0:01:06.1]} 19. Nfd2 {[%clk 0:01:27.4]} 19... Nc5
{[%clk 0:01:01.7]} 20. Qc2 {[%clk 0:01:27.9]} 20... Qg4 {[%clk 0:00:58.5]} 21.
Bg3 {[%clk 0:01:26.3]} 21... Nh5 {[%clk 0:00:57.6]} 22. f3 {[%clk 0:01:24.5]}
22... Qg5 {[%clk 0:00:53.8]} 23. Nf1 {[%clk 0:00:57]} 23... Nxg3 {[%clk
0:00:50.2]} 24. hxg3 {[%clk 0:00:52.9]} 24... h5 {[%clk 0:00:38.4]} 25. Qd2
{[%clk 0:00:48.4]} 25... Qe7 {[%clk 0:00:33.3]} 26. Rab1 {[%clk 0:00:36.6]}
26... Bc8 {[%clk 0:00:30.3]} 27. Bc6 {[%clk 0:00:24.6]} 27... h4 {[%clk
0:00:20.3]} 28. gxh4 {[%clk 0:00:18.2]} 28... Qxh4 {[%clk 0:00:21.2]} 29. Nfe3
{[%clk 0:00:13.2]} 29... Bh6 {[%clk 0:00:21.1]} 30. Re2 {[%clk 0:00:10.5]} 30...
f5 {[%clk 0:00:20.7]} 31. Qe1 {[%clk 0:00:06.5]} 31... Qxe1+ {[%clk 0:00:19.4]}
32. Rbxe1 {[%clk 0:00:07.4]} 32... fxe4 {[%clk 0:00:19.8]} 33. Ng4 {[%clk
0:00:04.1]} 33... Bxg4 {[%clk 0:00:18.8]} 34. fxg4 {[%clk 0:00:05]} 34... Bf4
{[%clk 0:00:16.2]} 35. Na3 {[%clk 0:00:04.8]} 35... Ra6 {[%clk 0:00:14.7]} 36.
Nb5 {[%clk 0:00:05.1]} 36... Rb6 {[%clk 0:00:15.1]} 37. Rf1 {[%clk 0:00:03.8]}
37... Bh2+ {[%clk 0:00:13.6]} 38. Kxh2 {[%clk 0:00:03.7]} 38... Rxf1 {[%clk
0:00:14.5]} 39. c4 {[%clk 0:00:03.3]} 39... Nxa4 {[%clk 0:00:13.9]} 40. Rxe4
{[%clk 0:00:02.8]} 40... Nc5 {[%clk 0:00:14.3]} 41. g5 {[%clk 0:00:02.9]} 41...
Nxe4 {[%clk 0:00:14]} 0-1

[Event "*** Titled Tuesday Blitz"]
[Site "Chess.com"]
[Date "2020.05.26"]
[Round "4"]
[White "AminMolaei"]
[Black "wonderfultime"]
[Result "1-0"]
[WhiteElo "2744"]
[BlackElo "2961"]
[TimeControl "180+1"]
[EndTime "10:38:57 PDT"]
[Termination "AminMolaei won by resignation"]

1. d4 {[%clk 0:03:00.9]} 1... d5 {[%clk 0:02:58.6]} 2. c4 {[%clk 0:03:01.4]}
2... c6 {[%clk 0:02:58.6]} 3. cxd5 {[%clk 0:03:01.9]} 3... cxd5 {[%clk
0:02:59.5]} 4. Bf4 {[%clk 0:03:02.5]} 4... Nf6 {[%clk 0:02:59.8]} 5. e3 {[%clk
0:03:03]} 5... Nc6 {[%clk 0:02:59.7]} 6. Nc3 {[%clk 0:03:03.4]} 6... a6 {[%clk
0:02:59.7]} 7. Bd3 {[%clk 0:03:03.1]} 7... Bg4 {[%clk 0:02:59.5]} 8. f3 {[%clk
0:03:03.1]} 8... Bh5 {[%clk 0:02:58.7]} 9. g4 {[%clk 0:03:01.5]} 9... Bg6 {[%clk
0:02:58.2]} 10. Nge2 {[%clk 0:03:01.4]} 10... e6 {[%clk 0:02:58.2]} 11. Rc1
{[%clk 0:03:00.7]} 11... Bd6 {[%clk 0:02:54]} 12. h4 {[%clk 0:02:58.3]} 12...
Rc8 {[%clk 0:02:49]} 13. Kf2 {[%clk 0:02:56.6]} 13... Bxd3 {[%clk 0:02:37.4]}
14. Qxd3 {[%clk 0:02:57.5]} 14... O-O {[%clk 0:02:38.3]} 15. h5 {[%clk
0:02:56.9]} 15... Qe7 {[%clk 0:02:25.7]} 16. g5 {[%clk 0:02:47.8]} 16... Nd7
{[%clk 0:02:25.1]} 17. Rcg1 {[%clk 0:02:30.2]} 17... Nb4 {[%clk 0:01:04.3]} 18.
Qb1 {[%clk 0:02:16.3]} 18... e5 {[%clk 0:01:04]} 19. dxe5 {[%clk 0:01:50.2]}
19... Nxe5 {[%clk 0:01:04.9]} 20. Bxe5 {[%clk 0:01:49.7]} 20... Qxe5 {[%clk
0:01:05.7]} 21. f4 {[%clk 0:01:39.9]} 21... Qe7 {[%clk 0:00:44.7]} 22. a3 {[%clk
0:01:38]} 22... Bc5 {[%clk 0:00:40.3]} 23. Rg3 {[%clk 0:01:25]} 23... Nc6 {[%clk
0:00:22.9]} 24. Nxd5 {[%clk 0:01:20.6]} 24... Qe6 {[%clk 0:00:23.3]} 25. h6
{[%clk 0:01:07.9]} 25... g6 {[%clk 0:00:21]} 26. Nf6+ {[%clk 0:01:06.4]} 26...
Kh8 {[%clk 0:00:21.2]} 27. Ne4 {[%clk 0:01:02.2]} 27... Bb6 {[%clk 0:00:15.7]}
28. b4 {[%clk 0:01:01.5]} 28... f6 {[%clk 0:00:09.2]} 29. gxf6 {[%clk
0:00:56.6]} 29... Rce8 {[%clk 0:00:08.9]} 30. N2c3 {[%clk 0:00:47.1]} 30... Qf5
{[%clk 0:00:07.3]} 31. Kg2 {[%clk 0:00:38]} 31... Re6 {[%clk 0:00:07.6]} 32. Rg5
{[%clk 0:00:35.9]} 32... Rxe4 {[%clk 0:00:03.1]} 33. Rxf5 {[%clk 0:00:35.7]}
33... Rxe3 {[%clk 0:00:02.8]} 34. f7 {[%clk 0:00:27.2]} 34... gxf5 {[%clk
0:00:02.1]} 35. Qxf5 {[%clk 0:00:19.2]} 35... Bd4 {[%clk 0:00:02.6]} 36. Nd5
{[%clk 0:00:17.1]} 36... Re2+ {[%clk 0:00:03]} 37. Kh3 {[%clk 0:00:13]} 37...
Ne7 {[%clk 0:00:03.2]} 38. Qd3 {[%clk 0:00:10]} 38... Nxd5 {[%clk 0:00:02.8]}
39. Qxd4+ {[%clk 0:00:09.1]} 1-0

[Event "*** Titled Tuesday Blitz"]
[Site "Chess.com"]
[Date "2020.05.26"]
[Round "4"]
[White "Xeslu"]
[Black "nurmiTV"]
[Result "1-0"]
[WhiteElo "2319"]
[BlackElo "2499"]
[TimeControl "180+1"]
[EndTime "10:38:58 PDT"]
[Termination "Xeslu won by resignation"]

1. e4 {[%clk 0:02:59.1]} 1... c5 {[%clk 0:02:59.7]} 2. Nf3 {[%clk 0:02:58.6]}
2... e6 {[%clk 0:03:00]} 3. c4 {[%clk 0:02:57.7]} 3... Nc6 {[%clk 0:02:59.2]} 4.
Nc3 {[%clk 0:02:56.3]} 4... a6 {[%clk 0:02:57.9]} 5. Be2 {[%clk 0:02:55.1]} 5...
Nd4 {[%clk 0:02:54.7]} 6. O-O {[%clk 0:02:54.7]} 6... Ne7 {[%clk 0:02:54.3]} 7.
Rb1 {[%clk 0:02:51.6]} 7... Nec6 {[%clk 0:02:53.7]} 8. a3 {[%clk 0:02:51]} 8...
a5 {[%clk 0:02:49.7]} 9. d3 {[%clk 0:02:50.1]} 9... Be7 {[%clk 0:02:49.4]} 10.
Nb5 {[%clk 0:02:49.8]} 10... O-O {[%clk 0:02:33.9]} 11. Nfxd4 {[%clk 0:02:40.6]}
11... cxd4 {[%clk 0:02:26.4]} 12. Bd2 {[%clk 0:02:32.3]} 12... a4 {[%clk
0:02:22.4]} 13. f4 {[%clk 0:02:25.8]} 13... d6 {[%clk 0:02:14.5]} 14. Qe1 {[%clk
0:02:16.3]} 14... b6 {[%clk 0:01:58.8]} 15. Bf3 {[%clk 0:02:14.4]} 15... e5
{[%clk 0:01:54.1]} 16. Qe2 {[%clk 0:01:37.6]} 16... Ba6 {[%clk 0:01:33.5]} 17.
b3 {[%clk 0:01:17]} 17... Bxb5 {[%clk 0:00:59]} 18. cxb5 {[%clk 0:01:16.2]}
18... Na5 {[%clk 0:00:55]} 19. bxa4 {[%clk 0:01:05.9]} 19... Nb7 {[%clk
0:00:52.7]} 20. Bb4 {[%clk 0:01:03.6]} 20... Rxa4 {[%clk 0:00:47.9]} 21. Rfc1
{[%clk 0:00:55.5]} 21... Nc5 {[%clk 0:00:40.3]} 22. fxe5 {[%clk 0:00:54.9]}
22... dxe5 {[%clk 0:00:37.4]} 23. Qc2 {[%clk 0:00:52.7]} 23... Qa8 {[%clk
0:00:29.2]} 24. Qc4 {[%clk 0:00:47.3]} 24... Ne6 {[%clk 0:00:20.5]} 25. Bg4
{[%clk 0:00:42.6]} 25... Nf4 {[%clk 0:00:17.5]} 26. g3 {[%clk 0:00:39.1]} 26...
Bxb4 {[%clk 0:00:12.2]} 27. axb4 {[%clk 0:00:34.7]} 27... Ng6 {[%clk 0:00:07.6]}
28. Rf1 {[%clk 0:00:33.7]} 28... Qa7 {[%clk 0:00:05.1]} 29. Rb2 {[%clk
0:00:30.7]} 29... Qe7 {[%clk 0:00:05.4]} 30. Rfb1 {[%clk 0:00:19.7]} 30... Ra7
{[%clk 0:00:04.3]} 31. Qc6 {[%clk 0:00:19.1]} 31... Rb7 {[%clk 0:00:04.3]} 32.
Rf1 {[%clk 0:00:17.5]} 32... Qc7 {[%clk 0:00:04.1]} 33. Rc2 {[%clk 0:00:16.6]}
33... Qe7 {[%clk 0:00:03.9]} 34. Rc4 {[%clk 0:00:15.2]} 34... Rbb8 {[%clk
0:00:03.7]} 35. h4 {[%clk 0:00:13.8]} 35... Nh8 {[%clk 0:00:01.1]} 36. Kg2
{[%clk 0:00:12.8]} 36... Ng6 {[%clk 0:00:01.5]} 37. h5 {[%clk 0:00:11.8]} 37...
Nh8 {[%clk 0:00:01.9]} 38. Rf5 {[%clk 0:00:11.5]} 38... f6 {[%clk 0:00:02.1]}
39. Qd5+ {[%clk 0:00:10.7]} 39... Nf7 {[%clk 0:00:02.5]} 40. Qc6 {[%clk
0:00:09.7]} 40... Rbd8 {[%clk 0:00:01.6]} 41. Rf1 {[%clk 0:00:09]} 41... Rd6
{[%clk 0:00:01.9]} 42. Qc7 {[%clk 0:00:09.2]} 42... Rfd8 {[%clk 0:00:02.6]} 43.
Qxe7 {[%clk 0:00:08.7]} 43... Rf8 {[%clk 0:00:03.2]} 44. Be6 {[%clk 0:00:08.4]}
1-0

[Event "*** Titled Tuesday Blitz"]
[Site "Chess.com"]
[Date "2020.05.26"]
[Round "4"]
[White "tigra"]
[Black "lachesisQ"]
[Result "0-1"]
[WhiteElo "2755"]
[BlackElo "3154"]
[TimeControl "180+1"]
[EndTime "10:38:59 PDT"]
[Termination "lachesisQ won by checkmate"]

1. e4 {[%clk 0:03:00.9]} 1... c5 {[%clk 0:02:58.8]} 2. Nf3 {[%clk 0:02:59.7]}
2... d6 {[%clk 0:02:59.2]} 3. d4 {[%clk 0:02:59.7]} 3... cxd4 {[%clk 0:03:00.1]}
4. Nxd4 {[%clk 0:03:00.6]} 4... Nf6 {[%clk 0:03:00.2]} 5. Nc3 {[%clk 0:03:01.4]}
5... a6 {[%clk 0:03:00.3]} 6. h3 {[%clk 0:03:01]} 6... e5 {[%clk 0:02:59.7]} 7.
Nb3 {[%clk 0:02:58.8]} 7... Be6 {[%clk 0:02:58.9]} 8. g4 {[%clk 0:02:58.7]} 8...
h6 {[%clk 0:02:59]} 9. Bg2 {[%clk 0:02:58.9]} 9... Be7 {[%clk 0:02:58.1]} 10. f4
{[%clk 0:02:42.9]} 10... exf4 {[%clk 0:02:49]} 11. Bxf4 {[%clk 0:02:42.6]} 11...
Nc6 {[%clk 0:02:49.6]} 12. Qe2 {[%clk 0:02:37.3]} 12... Nd7 {[%clk 0:02:48]} 13.
O-O-O {[%clk 0:02:19.7]} 13... Nce5 {[%clk 0:02:47.8]} 14. Kb1 {[%clk
0:02:18.8]} 14... Rc8 {[%clk 0:02:46.5]} 15. Nd5 {[%clk 0:02:16.9]} 15... Bxd5
{[%clk 0:02:45.2]} 16. exd5 {[%clk 0:02:17.8]} 16... O-O {[%clk 0:02:45.7]} 17.
Nd4 {[%clk 0:02:15.6]} 17... Bf6 {[%clk 0:02:42.5]} 18. c3 {[%clk 0:02:10.4]}
18... Nc4 {[%clk 0:02:40.9]} 19. Rhe1 {[%clk 0:02:06]} 19... Qb6 {[%clk
0:02:38]} 20. Ka1 {[%clk 0:02:01.4]} 20... Rfe8 {[%clk 0:02:27.9]} 21. Qxe8+
{[%clk 0:02:00.5]} 21... Rxe8 {[%clk 0:02:27.7]} 22. Rxe8+ {[%clk 0:02:01.4]}
22... Kh7 {[%clk 0:02:28.5]} 23. Re2 {[%clk 0:01:58.2]} 23... Nc5 {[%clk
0:02:26.5]} 24. Bc1 {[%clk 0:01:42]} 24... a5 {[%clk 0:02:15]} 25. Be4+ {[%clk
0:01:36.7]} 25... Nxe4 {[%clk 0:02:10.8]} 26. Rxe4 {[%clk 0:01:37.6]} 26... a4
{[%clk 0:02:11.2]} 27. Re2 {[%clk 0:01:05]} 27... Qc5 {[%clk 0:02:07.9]} 28. h4
{[%clk 0:00:46.3]} 28... a3 {[%clk 0:01:58]} 29. b3 {[%clk 0:00:17.9]} 29... Nb6
{[%clk 0:01:40.2]} 30. Rc2 {[%clk 0:00:17.6]} 30... Nxd5 {[%clk 0:01:38.9]} 31.
Ne2 {[%clk 0:00:14.7]} 31... Nb4 {[%clk 0:01:29.9]} 32. Rcd2 {[%clk 0:00:14.3]}
32... Bxc3+ {[%clk 0:01:29.7]} 33. Nxc3 {[%clk 0:00:14.8]} 33... Qxc3+ {[%clk
0:01:30.6]} 34. Kb1 {[%clk 0:00:15.7]} 34... Qc6 {[%clk 0:01:06.6]} 35. Bxa3
{[%clk 0:00:15.9]} 35... Qe4+ {[%clk 0:01:06.6]} 36. Kc1 {[%clk 0:00:15.9]}
36... Qxg4 {[%clk 0:01:04.6]} 37. Rd4 {[%clk 0:00:14]} 37... Qc8+ {[%clk
0:00:43.4]} 38. Rc4 {[%clk 0:00:14.2]} 38... Nc6 {[%clk 0:00:43.7]} 39. Bxd6
{[%clk 0:00:14.9]} 39... Qe6 {[%clk 0:00:41.4]} 40. Rc2 {[%clk 0:00:13.7]} 40...
Qf6 {[%clk 0:00:40.7]} 41. Kb1 {[%clk 0:00:13.7]} 41... Qxh4 {[%clk 0:00:40.7]}
42. Rcd2 {[%clk 0:00:11.4]} 42... Qe4+ {[%clk 0:00:40.6]} 43. Kb2 {[%clk
0:00:11.4]} 43... f5 {[%clk 0:00:39.6]} 44. b4 {[%clk 0:00:11.7]} 44... b5
{[%clk 0:00:33]} 45. a4 {[%clk 0:00:11.2]} 45... bxa4 {[%clk 0:00:31.1]} 46. Ka3
{[%clk 0:00:11.7]} 46... f4 {[%clk 0:00:29.7]} 47. b5 {[%clk 0:00:10.8]} 47...
Na7 {[%clk 0:00:28.9]} 48. Rd5 {[%clk 0:00:06]} 48... Qc4 {[%clk 0:00:28.6]} 49.
b6 {[%clk 0:00:05.2]} 49... Qb3# {[%clk 0:00:28.2]} 0-1